[Event "Early-Titled-Tuesday-Blitz-October-03-2023"]
[Site "Chess.com"]
[Date "2023.10.03"]
[Round "7"]
[White "Brave_spirit12"]
[Black "Ermito2020"]
[Result "1-0"]
[WhiteElo "2765"]
[BlackElo "2609"]
[TimeControl "180+1"]
[EndTime "9:20:33 PDT"]
[Termination "Brave_spirit12 won on time"]

1. e4 {[%clk 0:02:59.5]} 1... e6 {[%clk 0:03:00]} 2. d3 {[%clk 0:02:57.3]} 2...
d5 {[%clk 0:02:59.9]} 3. Nd2 {[%clk 0:02:58]} 3... c5 {[%clk 0:02:59.1]} 4. Ngf3
{[%clk 0:02:57.8]} 4... Nc6 {[%clk 0:02:58.4]} 5. g3 {[%clk 0:02:58]} 5... Bd6
{[%clk 0:02:58.3]} 6. Bg2 {[%clk 0:02:57.4]} 6... Nge7 {[%clk 0:02:58.1]} 7. O-O
{[%clk 0:02:57.3]} 7... O-O {[%clk 0:02:57.5]} 8. Re1 {[%clk 0:02:57.4]} 8...
Qc7 {[%clk 0:02:57.1]} 9. Qe2 {[%clk 0:02:51.2]} 9... f6 {[%clk 0:02:56.7]} 10.
c3 {[%clk 0:02:49.8]} 10... b5 {[%clk 0:02:54.7]} 11. d4 {[%clk 0:02:43.5]}
11... cxd4 {[%clk 0:02:38]} 12. Nxd4 {[%clk 0:02:39.6]} 12... Nxd4 {[%clk
0:02:35]} 13. cxd4 {[%clk 0:02:40.5]} 13... b4 {[%clk 0:02:32.1]} 14. Nb3 {[%clk
0:02:31.9]} 14... a5 {[%clk 0:02:03.8]} 15. e5 {[%clk 0:02:30.3]} 15... fxe5
{[%clk 0:01:59]} 16. dxe5 {[%clk 0:02:31.2]} 16... Bc5 {[%clk 0:01:59.1]} 17.
Nxc5 {[%clk 0:02:31.5]} 17... Qxc5 {[%clk 0:02:00]} 18. Be3 {[%clk 0:02:32.2]}
18... Qc7 {[%clk 0:01:53.7]} 19. Rac1 {[%clk 0:02:24.2]} 19... Qxe5 {[%clk
0:01:49.7]} 20. Bc5 {[%clk 0:02:24.4]} 20... Qxe2 {[%clk 0:01:49.7]} 21. Rxe2
{[%clk 0:02:25.3]} 21... Re8 {[%clk 0:01:18.2]} 22. Bxe7 {[%clk 0:02:24.4]}
22... Rxe7 {[%clk 0:01:19.1]} 23. Bxd5 {[%clk 0:02:24]} 23... Rb8 {[%clk
0:01:19.8]} 24. Rc6 {[%clk 0:02:21]} 24... Kf7 {[%clk 0:01:10.5]} 25. Bc4 {[%clk
0:02:19]} 25... Bd7 {[%clk 0:01:05.3]} 26. Rc7 {[%clk 0:02:18.1]} 26... Rc8
{[%clk 0:01:02.6]} 27. Rxc8 {[%clk 0:02:15.8]} 27... Bxc8 {[%clk 0:01:02.1]} 28.
Re5 {[%clk 0:02:16.7]} 28... Bb7 {[%clk 0:00:46.7]} 29. Rxa5 {[%clk 0:02:15.4]}
29... Rd7 {[%clk 0:00:47]} 30. Kf1 {[%clk 0:02:00.1]} 30... Bf3 {[%clk
0:00:38.5]} 31. Be2 {[%clk 0:01:58.4]} 31... Bxe2+ {[%clk 0:00:36.5]} 32. Kxe2
{[%clk 0:01:59.3]} 32... Kf6 {[%clk 0:00:31.8]} 33. Rb5 {[%clk 0:01:57.6]} 33...
Ra7 {[%clk 0:00:31.6]} 34. Rxb4 {[%clk 0:01:57.5]} 34... Rxa2 {[%clk 0:00:31.6]}
35. Rb7 {[%clk 0:01:58]} 35... Ra1 {[%clk 0:00:30.6]} 36. h4 {[%clk 0:01:58]}
36... h6 {[%clk 0:00:18.3]} 37. b4 {[%clk 0:01:57.6]} 37... Rb1 {[%clk
0:00:17.7]} 38. b5 {[%clk 0:01:57.7]} 38... Rb2+ {[%clk 0:00:17.7]} 39. Ke3
{[%clk 0:01:57.3]} 39... Rb3+ {[%clk 0:00:18.1]} 40. Ke2 {[%clk 0:01:56.4]}
40... Rb2+ {[%clk 0:00:18.6]} 41. Kf3 {[%clk 0:01:57.1]} 41... Rb3+ {[%clk
0:00:18.9]} 42. Kg2 {[%clk 0:01:57.9]} 42... g5 {[%clk 0:00:17.7]} 43. h5 {[%clk
0:01:57.9]} 43... g4 {[%clk 0:00:17.9]} 44. b6 {[%clk 0:01:46.7]} 44... Kg5
{[%clk 0:00:17.8]} 45. Rg7+ {[%clk 0:01:43.3]} 45... Kxh5 {[%clk 0:00:17.3]} 46.
b7 {[%clk 0:01:43.1]} 46... Rb1 {[%clk 0:00:17]} 47. Kh2 {[%clk 0:01:38.7]}
47... Rb2 {[%clk 0:00:16.6]} 48. Kg1 {[%clk 0:01:38.1]} 48... Rb1+ {[%clk
0:00:17.2]} 49. Kg2 {[%clk 0:01:38.7]} 49... Rb2 {[%clk 0:00:17.6]} 50. Kf1
{[%clk 0:01:39.3]} 50... e5 {[%clk 0:00:14.7]} 51. Ke1 {[%clk 0:01:38.9]} 51...
e4 {[%clk 0:00:15.1]} 52. Kd1 {[%clk 0:01:37.6]} 52... Rb6 {[%clk 0:00:11.7]}
53. Kc2 {[%clk 0:01:36.1]} 53... Rb5 {[%clk 0:00:11.8]} 54. Kc3 {[%clk
0:01:35.9]} 54... Rb6 {[%clk 0:00:11.7]} 55. Kc4 {[%clk 0:01:35.8]} 55... e3
{[%clk 0:00:08.9]} 56. Kc5 {[%clk 0:01:10.4]} 56... exf2 {[%clk 0:00:08.7]} 57.
Kxb6 {[%clk 0:01:10.1]} 57... f1=Q {[%clk 0:00:08.8]} 58. Rc7 {[%clk 0:01:07.8]}
58... Qf6+ {[%clk 0:00:08.6]} 59. Rc6 {[%clk 0:01:07]} 59... Qd4+ {[%clk
0:00:07.9]} 60. Rc5+ {[%clk 0:01:07.1]} 60... Kg6 {[%clk 0:00:07.6]} 61. b8=Q
{[%clk 0:01:07]} 61... Qb4+ {[%clk 0:00:07.5]} 62. Rb5 {[%clk 0:01:07.5]} 62...
Qd4+ {[%clk 0:00:07.5]} 63. Ka6 {[%clk 0:01:07.5]} 63... Qa4+ {[%clk 0:00:07.4]}
64. Ra5 {[%clk 0:01:07.1]} 64... Qc4+ {[%clk 0:00:05.5]} 65. Qb5 {[%clk
0:01:07.4]} 65... Qc8+ {[%clk 0:00:05.6]} 66. Qb7 {[%clk 0:01:07.5]} 66... Qc4+
{[%clk 0:00:05.3]} 67. Ka7 {[%clk 0:01:08.1]} 67... Qd4+ {[%clk 0:00:04.8]} 68.
Qb6+ {[%clk 0:01:09]} 68... Qxb6+ {[%clk 0:00:04.9]} 69. Kxb6 {[%clk 0:01:09.9]}
69... h5 {[%clk 0:00:04.4]} 70. Kc6 {[%clk 0:01:10.6]} 70... h4 {[%clk
0:00:05.3]} 71. gxh4 {[%clk 0:01:11.3]} 71... g3 {[%clk 0:00:05.6]} 72. Rg5+
{[%clk 0:01:12.2]} 72... Kh6 {[%clk 0:00:04.4]} 73. Rxg3 {[%clk 0:01:13.1]} 1-0

[Event "Early-Titled-Tuesday-Blitz-October-03-2023"]
[Site "Chess.com"]
[Date "2023.10.03"]
[Round "7"]
[White "Goi_Manne"]
[Black "ChainedDowntohell"]
[Result "1/2-1/2"]
[WhiteElo "2297"]
[BlackElo "2421"]
[TimeControl "180+1"]
[EndTime "9:20:33 PDT"]
[Termination "Game drawn by repetition"]

1. e4 {[%clk 0:03:00.9]} 1... c5 {[%clk 0:03:00]} 2. Nf3 {[%clk 0:03:00.7]} 2...
Nc6 {[%clk 0:02:59.6]} 3. c3 {[%clk 0:03:00.5]} 3... Nf6 {[%clk 0:02:57.2]} 4.
e5 {[%clk 0:03:00.7]} 4... Nd5 {[%clk 0:02:57.3]} 5. g3 {[%clk 0:03:00.4]} 5...
d6 {[%clk 0:02:52.5]} 6. exd6 {[%clk 0:03:01.3]} 6... e6 {[%clk 0:02:51.9]} 7.
Bg2 {[%clk 0:03:01.9]} 7... Bxd6 {[%clk 0:02:50.2]} 8. O-O {[%clk 0:03:02.5]}
8... O-O {[%clk 0:02:48]} 9. d4 {[%clk 0:03:03.1]} 9... Nf6 {[%clk 0:02:39.5]}
10. Be3 {[%clk 0:02:59.6]} 10... Qe7 {[%clk 0:02:21.1]} 11. dxc5 {[%clk
0:02:52.3]} 11... Bxc5 {[%clk 0:02:20.6]} 12. Bxc5 {[%clk 0:02:53.1]} 12... Qxc5
{[%clk 0:02:21.5]} 13. Nbd2 {[%clk 0:02:51.7]} 13... Bd7 {[%clk 0:02:11.2]} 14.
Nb3 {[%clk 0:02:48.8]} 14... Qb6 {[%clk 0:02:11]} 15. Nfd4 {[%clk 0:02:42.4]}
15... Rfd8 {[%clk 0:02:09.8]} 16. Qc2 {[%clk 0:02:36.8]} 16... Rac8 {[%clk
0:02:09.1]} 17. Nxc6 {[%clk 0:02:35.5]} 17... Bxc6 {[%clk 0:02:08.6]} 18. Bxc6
{[%clk 0:02:34.9]} 18... Qxc6 {[%clk 0:02:00.7]} 19. Rad1 {[%clk 0:02:34.3]}
19... h5 {[%clk 0:02:00.3]} 20. Rxd8+ {[%clk 0:02:32.9]} 20... Rxd8 {[%clk
0:02:00.1]} 21. Rd1 {[%clk 0:02:33.5]} 21... Rd5 {[%clk 0:01:51.6]} 22. Rxd5
{[%clk 0:02:32]} 22... Qxd5 {[%clk 0:01:51.6]} 23. Qd2 {[%clk 0:02:29.4]} 23...
Qe4 {[%clk 0:01:49.3]} 24. Qe3 {[%clk 0:02:14.7]} 24... Qa4 {[%clk 0:01:34.1]}
25. Nc5 {[%clk 0:02:10.5]} 25... Qxa2 {[%clk 0:01:06.2]} 26. Nxb7 {[%clk
0:02:10.2]} 26... Qxb2 {[%clk 0:00:53.7]} 27. Qxa7 {[%clk 0:02:09.3]} 27... Qxc3
{[%clk 0:00:49]} 28. Qb8+ {[%clk 0:01:51.1]} 28... Kh7 {[%clk 0:00:48.1]} 29.
Qf4 {[%clk 0:01:51.3]} 29... Qa1+ {[%clk 0:00:18.3]} 30. Kg2 {[%clk 0:01:51.3]}
30... Qa8 {[%clk 0:00:17.4]} 31. Qf3 {[%clk 0:01:49.8]} 31... Kg8 {[%clk
0:00:13.9]} 32. Nd6 {[%clk 0:01:47.7]} 32... Qd8 {[%clk 0:00:13.6]} 33. Nc4
{[%clk 0:01:39.4]} 33... Qd4 {[%clk 0:00:13.7]} 34. Ne3 {[%clk 0:01:38.5]} 34...
h4 {[%clk 0:00:13.1]} 35. Qa8+ {[%clk 0:01:32.2]} 35... Kh7 {[%clk 0:00:12.9]}
36. Qf3 {[%clk 0:01:32.9]} 36... g5 {[%clk 0:00:11.9]} 37. Nc2 {[%clk
0:01:28.6]} 37... Qe5 {[%clk 0:00:11.3]} 38. Qd3+ {[%clk 0:01:25.8]} 38... Kg7
{[%clk 0:00:10]} 39. Ne3 {[%clk 0:01:23.3]} 39... hxg3 {[%clk 0:00:07.3]} 40.
hxg3 {[%clk 0:01:23]} 40... Qe4+ {[%clk 0:00:05.2]} 41. Qxe4 {[%clk 0:01:22.3]}
41... Nxe4 {[%clk 0:00:06.1]} 42. Kf3 {[%clk 0:01:22.3]} 42... f5 {[%clk
0:00:05.8]} 43. Nc4 {[%clk 0:01:21]} 43... Kf6 {[%clk 0:00:05.7]} 44. g4 {[%clk
0:01:19.2]} 44... Nc5 {[%clk 0:00:03.5]} 45. gxf5 {[%clk 0:01:18.9]} 45... exf5
{[%clk 0:00:03.4]} 46. Kg2 {[%clk 0:01:17.1]} 46... Nd3 {[%clk 0:00:03.3]} 47.
f3 {[%clk 0:01:15]} 47... Nf4+ {[%clk 0:00:03.1]} 48. Kg3 {[%clk 0:01:14.8]}
48... Ke6 {[%clk 0:00:03.4]} 49. Nd2 {[%clk 0:01:13.3]} 49... Ke5 {[%clk
0:00:03.2]} 50. Nf1 {[%clk 0:01:12]} 50... Nd5 {[%clk 0:00:02.6]} 51. Kf2 {[%clk
0:01:08.9]} 51... Nc3 {[%clk 0:00:01.4]} 52. Ne3 {[%clk 0:01:07.1]} 52... Nd5
{[%clk 0:00:02.3]} 53. Nc4+ {[%clk 0:01:06.7]} 53... Ke6 {[%clk 0:00:02.6]} 54.
Kg3 {[%clk 0:01:05.8]} 54... Nf4 {[%clk 0:00:03.1]} 55. Ne3 {[%clk 0:01:04.8]}
55... Nd3 {[%clk 0:00:03.4]} 56. Nc4 {[%clk 0:01:03.1]} 56... Kd5 {[%clk
0:00:03.4]} 57. Ne3+ {[%clk 0:01:02]} 57... Ke5 {[%clk 0:00:04]} 58. Nc4+ {[%clk
0:01:02.4]} 58... Kd4 {[%clk 0:00:04.6]} 59. Nd6 {[%clk 0:01:02.7]} 59... Ke5
{[%clk 0:00:05.2]} 60. Nc4+ {[%clk 0:01:02.9]} 60... Kf6 {[%clk 0:00:05.9]} 61.
Nd6 {[%clk 0:01:01.1]} 61... Ne5 {[%clk 0:00:05.9]} 62. f4 {[%clk 0:00:56.6]}
62... gxf4+ {[%clk 0:00:02.8]} 63. Kxf4 {[%clk 0:00:57.5]} 63... Ng6+ {[%clk
0:00:03.3]} 64. Ke3 {[%clk 0:00:56.5]} 64... f4+ {[%clk 0:00:03.2]} 65. Kf3
{[%clk 0:00:56.6]} 65... Kg5 {[%clk 0:00:02.8]} 66. Nf7+ {[%clk 0:00:56.4]}
66... Kf5 {[%clk 0:00:02.7]} 67. Nd6+ {[%clk 0:00:56.5]} 67... Ke6 {[%clk
0:00:02.7]} 68. Ne4 {[%clk 0:00:54.6]} 68... Ke5 {[%clk 0:00:02.5]} 69. Nd2
{[%clk 0:00:51.7]} 69... Kf5 {[%clk 0:00:02.5]} 70. Kf2 {[%clk 0:00:51.1]} 70...
Ne5 {[%clk 0:00:02.5]} 71. Nf1 {[%clk 0:00:49.6]} 71... Ke4 {[%clk 0:00:01.9]}
72. Nd2+ {[%clk 0:00:49.5]} 72... Kf5 {[%clk 0:00:01.6]} 73. Nf1 {[%clk
0:00:49.1]} 73... Ng4+ {[%clk 0:00:02.2]} 74. Kf3 {[%clk 0:00:48.6]} 74... Ne5+
{[%clk 0:00:02.8]} 75. Kf2 {[%clk 0:00:49.1]} 1/2-1/2

[Event "Early-Titled-Tuesday-Blitz-October-03-2023"]
[Site "Chess.com"]
[Date "2023.10.03"]
[Round "7"]
[White "sofaceindisguise"]
[Black "Fandorine"]
[Result "1/2-1/2"]
[WhiteElo "2791"]
[BlackElo "2917"]
[TimeControl "180+1"]
[EndTime "9:20:36 PDT"]
[Termination "Game drawn by agreement"]

1. c4 {[%clk 0:02:59.6]} 1... f5 {[%clk 0:02:54.9]} 2. g3 {[%clk 0:02:59.2]}
2... Nf6 {[%clk 0:02:53.9]} 3. Bg2 {[%clk 0:02:59.8]} 3... g6 {[%clk 0:02:54.6]}
4. Nc3 {[%clk 0:02:59.4]} 4... Bg7 {[%clk 0:02:55.2]} 5. d4 {[%clk 0:02:58.9]}
5... O-O {[%clk 0:02:54.3]} 6. Bh3 {[%clk 0:02:58.9]} 6... d6 {[%clk 0:02:53.4]}
7. d5 {[%clk 0:02:58.1]} 7... e5 {[%clk 0:02:53]} 8. dxe6 {[%clk 0:02:58.4]}
8... Bxe6 {[%clk 0:02:52.9]} 9. Nd5 {[%clk 0:02:45]} 9... c6 {[%clk 0:02:46.5]}
10. Nxf6+ {[%clk 0:02:39.8]} 10... Qxf6 {[%clk 0:02:47.4]} 11. Qxd6 {[%clk
0:02:26.5]} 11... Na6 {[%clk 0:02:41.6]} 12. Nf3 {[%clk 0:02:24]} 12... Rad8
{[%clk 0:02:32.3]} 13. Qa3 {[%clk 0:02:20.5]} 13... h6 {[%clk 0:02:28.8]} 14.
O-O {[%clk 0:02:17.2]} 14... Bxc4 {[%clk 0:02:25.8]} 15. Re1 {[%clk 0:02:17.6]}
15... Rfe8 {[%clk 0:02:22]} 16. Bf1 {[%clk 0:02:03]} 16... g5 {[%clk 0:02:17.6]}
17. Be3 {[%clk 0:01:46.7]} 17... Qxb2 {[%clk 0:01:11.1]} 18. Qxb2 {[%clk
0:01:45.5]} 18... Bxb2 {[%clk 0:01:12]} 19. Rab1 {[%clk 0:01:46.2]} 19... Ba3
{[%clk 0:00:56]} 20. Rxb7 {[%clk 0:01:42.5]} 20... Re7 {[%clk 0:00:41.3]} 21.
Rxe7 {[%clk 0:01:36.2]} 21... Bxe7 {[%clk 0:00:42.2]} 22. Rc1 {[%clk 0:01:30.9]}
22... Bb5 {[%clk 0:00:35.8]} 23. Nd4 {[%clk 0:01:24.7]} 23... f4 {[%clk
0:00:34.8]} 24. Nxb5 {[%clk 0:01:24.7]} 24... fxe3 {[%clk 0:00:31.9]} 25. Rxc6
{[%clk 0:01:23.8]} 25... exf2+ {[%clk 0:00:30.2]} 26. Kxf2 {[%clk 0:01:21.5]}
26... Bc5+ {[%clk 0:00:17.5]} 27. Kg2 {[%clk 0:01:16.7]} 27... Bb6 {[%clk
0:00:17.6]} 28. Rxh6 {[%clk 0:01:03.2]} 28... Rf8 {[%clk 0:00:13]} 29. e3 {[%clk
0:01:03]} 29... Kg7 {[%clk 0:00:11.8]} 30. Re6 {[%clk 0:00:57.2]} 30... Nb4
{[%clk 0:00:11.6]} 31. Bc4 {[%clk 0:00:55.4]} 31... Nc2 {[%clk 0:00:11.3]} 32.
Nd4 {[%clk 0:00:43.6]} 32... Nxd4 {[%clk 0:00:09.2]} 33. exd4 {[%clk 0:00:44.2]}
33... Bxd4 {[%clk 0:00:10.1]} 34. Kh3 {[%clk 0:00:42.3]} 34... Rh8+ {[%clk
0:00:10.3]} 35. Kg4 {[%clk 0:00:42.5]} 35... Rxh2 {[%clk 0:00:11]} 36. Kxg5
{[%clk 0:00:39.6]} 36... Rc2 {[%clk 0:00:11.6]} 37. Bb3 {[%clk 0:00:39.5]} 37...
Rc5+ {[%clk 0:00:12]} 38. Kg4 {[%clk 0:00:40.1]} 38... Bf6 {[%clk 0:00:11.6]}
39. Ra6 {[%clk 0:00:39.6]} 39... Rc7 {[%clk 0:00:11.6]} 40. Kf5 {[%clk 0:00:40]}
40... Rc5+ {[%clk 0:00:06.4]} 41. Ke6 {[%clk 0:00:38.5]} 41... Re5+ {[%clk
0:00:06.9]} 42. Kd6 {[%clk 0:00:36.9]} 42... Re7 {[%clk 0:00:07.3]} 43. Be6
{[%clk 0:00:31.8]} 43... Rb7 {[%clk 0:00:07]} 44. Kc6 {[%clk 0:00:27.1]} 44...
Re7 {[%clk 0:00:07.1]} 45. Bf5 {[%clk 0:00:21.7]} 45... Bd4 {[%clk 0:00:07.3]}
46. g4 {[%clk 0:00:22]} 46... Bb6 {[%clk 0:00:05.2]} 47. a4 {[%clk 0:00:22.5]}
47... Rc7+ {[%clk 0:00:04.7]} 48. Kd6 {[%clk 0:00:22]} 48... Rc5 {[%clk
0:00:05]} 49. Bd3 {[%clk 0:00:17.3]} 49... Ra5 {[%clk 0:00:04]} 50. Kc6 {[%clk
0:00:14.1]} 50... Rxa6 {[%clk 0:00:03.6]} 51. Bxa6 {[%clk 0:00:15]} 51... Kf6
{[%clk 0:00:04]} 52. Kb5 {[%clk 0:00:13.6]} 52... Kg5 {[%clk 0:00:04.2]} 53. Bc8
{[%clk 0:00:14.5]} 53... Kf4 {[%clk 0:00:03.3]} 54. a5 {[%clk 0:00:15]} 54...
Bf2 {[%clk 0:00:03.8]} 55. Ka6 {[%clk 0:00:15.4]} 55... Kg5 {[%clk 0:00:04.3]}
56. Kb7 {[%clk 0:00:16]} 56... Be3 {[%clk 0:00:04.1]} 57. Kc6 {[%clk 0:00:15.9]}
57... Bf2 {[%clk 0:00:04.7]} 58. Bf5 {[%clk 0:00:15.5]} 58... Bg1 {[%clk
0:00:04.9]} 59. a6 {[%clk 0:00:16]} 59... Bb6 {[%clk 0:00:04.9]} 1/2-1/2

[Event "Early-Titled-Tuesday-Blitz-October-03-2023"]
[Site "Chess.com"]
[Date "2023.10.03"]
[Round "7"]
[White "elmusmolamas"]
[Black "ajedrezhoy"]
[Result "1-0"]
[WhiteElo "2542"]
[BlackElo "2371"]
[TimeControl "180+1"]
[EndTime "9:20:37 PDT"]
[Termination "elmusmolamas won by resignation"]

1. e4 {[%clk 0:03:00.9]} 1... Nf6 {[%clk 0:02:59.5]} 2. Nc3 {[%clk 0:02:58.6]}
2... d5 {[%clk 0:02:59]} 3. exd5 {[%clk 0:02:58.7]} 3... Nxd5 {[%clk 0:02:58.7]}
4. Bc4 {[%clk 0:02:54.1]} 4... Nb6 {[%clk 0:02:58.4]} 5. Bb3 {[%clk 0:02:54.7]}
5... c5 {[%clk 0:02:58.7]} 6. d3 {[%clk 0:02:53.7]} 6... Nc6 {[%clk 0:02:58]} 7.
Nf3 {[%clk 0:02:47.6]} 7... Bf5 {[%clk 0:02:57.6]} 8. O-O {[%clk 0:02:44.6]}
8... e6 {[%clk 0:02:57.8]} 9. Qe2 {[%clk 0:02:45]} 9... Be7 {[%clk 0:02:57.9]}
10. Ne5 {[%clk 0:02:42.4]} 10... Nxe5 {[%clk 0:02:53]} 11. Qxe5 {[%clk
0:02:43.3]} 11... O-O {[%clk 0:02:52.7]} 12. Bf4 {[%clk 0:02:39.9]} 12... Rc8
{[%clk 0:02:50.9]} 13. Rad1 {[%clk 0:02:31]} 13... Bf6 {[%clk 0:02:49.5]} 14.
Qe3 {[%clk 0:02:24.3]} 14... Nd5 {[%clk 0:02:43.5]} 15. Nxd5 {[%clk 0:02:16.3]}
15... exd5 {[%clk 0:02:43.4]} 16. Qf3 {[%clk 0:02:15.8]} 16... Be6 {[%clk
0:02:38.5]} 17. c3 {[%clk 0:02:11.7]} 17... Qd7 {[%clk 0:02:32.1]} 18. Qg3
{[%clk 0:02:05.8]} 18... Rfd8 {[%clk 0:02:28.2]} 19. Be5 {[%clk 0:02:01.2]}
19... Bxe5 {[%clk 0:02:26.8]} 20. Qxe5 {[%clk 0:02:02.1]} 20... Qd6 {[%clk
0:02:19]} 21. Qxd6 {[%clk 0:02:01.8]} 21... Rxd6 {[%clk 0:02:18.2]} 22. d4
{[%clk 0:02:02.7]} 22... c4 {[%clk 0:02:13.6]} 23. Bc2 {[%clk 0:02:03.2]} 23...
b5 {[%clk 0:02:13.3]} 24. f4 {[%clk 0:01:59.1]} 24... g6 {[%clk 0:02:11.9]} 25.
Rde1 {[%clk 0:01:57.1]} 25... a5 {[%clk 0:02:08.4]} 26. f5 {[%clk 0:01:50.7]}
26... gxf5 {[%clk 0:01:55.8]} 27. Bxf5 {[%clk 0:01:51.6]} 27... b4 {[%clk
0:01:52.9]} 28. Re3 {[%clk 0:01:24.4]} 28... Bxf5 {[%clk 0:01:36.4]} 29. Rxf5
{[%clk 0:01:23.6]} 29... bxc3 {[%clk 0:01:20.2]} 30. bxc3 {[%clk 0:01:24.5]}
30... Rb8 {[%clk 0:01:17.5]} 31. h4 {[%clk 0:01:13.3]} 31... Rb2 {[%clk
0:01:15.8]} 32. h5 {[%clk 0:00:26.2]} 32... h6 {[%clk 0:01:14.3]} 33. Re7 {[%clk
0:00:25.5]} 33... Kf8 {[%clk 0:01:08]} 34. Rfxf7+ {[%clk 0:00:24.8]} 34... Kg8
{[%clk 0:01:05.8]} 35. Rg7+ {[%clk 0:00:25.7]} 35... Kf8 {[%clk 0:01:05.7]} 36.
Ref7+ {[%clk 0:00:24.7]} 36... Ke8 {[%clk 0:01:05.7]} 37. Ra7 {[%clk 0:00:25]}
37... Kf8 {[%clk 0:01:05.7]} 38. Rgf7+ {[%clk 0:00:23.6]} 38... Kg8 {[%clk
0:01:05.5]} 39. Rg7+ {[%clk 0:00:24.2]} 39... Kh8 {[%clk 0:01:05.3]} 40. Rh7+
{[%clk 0:00:24.7]} 40... Kg8 {[%clk 0:01:05.2]} 41. Rag7+ {[%clk 0:00:25.4]}
41... Kf8 {[%clk 0:01:05.1]} 42. Rb7 {[%clk 0:00:23.9]} 42... Rxb7 {[%clk
0:00:59.5]} 43. Rxb7 {[%clk 0:00:24.8]} 43... a4 {[%clk 0:00:51.3]} 44. Ra7
{[%clk 0:00:21.1]} 44... Rb6 {[%clk 0:00:48.7]} 45. Rxa4 {[%clk 0:00:21.6]}
45... Rb1+ {[%clk 0:00:48.5]} 46. Kh2 {[%clk 0:00:20.1]} 46... Rc1 {[%clk
0:00:48]} 47. Ra3 {[%clk 0:00:20.7]} 47... Kf7 {[%clk 0:00:45.7]} 48. Kg3 {[%clk
0:00:20.8]} 48... Kf6 {[%clk 0:00:45.3]} 49. Kf4 {[%clk 0:00:21.4]} 49... Rf1+
{[%clk 0:00:44.9]} 50. Kg4 {[%clk 0:00:22]} 50... Rc1 {[%clk 0:00:43.8]} 51. g3
{[%clk 0:00:21.3]} 51... Rc2 {[%clk 0:00:42.3]} 52. Kf4 {[%clk 0:00:19.9]} 52...
Rf2+ {[%clk 0:00:41.6]} 53. Ke3 {[%clk 0:00:19.2]} 53... Rg2 {[%clk 0:00:41.7]}
54. Kf3 {[%clk 0:00:19]} 54... Rc2 {[%clk 0:00:41.5]} 55. Kf4 {[%clk 0:00:16.7]}
55... Rf2+ {[%clk 0:00:41.1]} 56. Kg4 {[%clk 0:00:17.4]} 56... Rc2 {[%clk
0:00:40.8]} 57. Ra6+ {[%clk 0:00:18.1]} 57... Kg7 {[%clk 0:00:39.8]} 58. Kf5
{[%clk 0:00:16.9]} 58... Rxc3 {[%clk 0:00:38.2]} 59. Ra7+ {[%clk 0:00:17.6]}
59... Kf8 {[%clk 0:00:38.2]} 60. g4 {[%clk 0:00:17]} 60... Rd3 {[%clk
0:00:36.3]} 61. Ke5 {[%clk 0:00:17.5]} 61... c3 {[%clk 0:00:34.9]} 62. Rc7
{[%clk 0:00:18]} 62... Rg3 {[%clk 0:00:32.4]} 63. Kxd5 {[%clk 0:00:16.7]} 63...
Rxg4 {[%clk 0:00:31.5]} 64. Rxc3 {[%clk 0:00:17.4]} 64... Rg5+ {[%clk
0:00:31.4]} 65. Kc6 {[%clk 0:00:10.7]} 65... Rxh5 {[%clk 0:00:31.3]} 66. d5
{[%clk 0:00:11.5]} 66... Ke7 {[%clk 0:00:31.2]} 67. d6+ {[%clk 0:00:10.3]} 67...
Kd8 {[%clk 0:00:30.4]} 68. Ra3 {[%clk 0:00:10.9]} 68... Ke8 {[%clk 0:00:26.4]}
69. d7+ {[%clk 0:00:11.2]} 69... Ke7 {[%clk 0:00:24.4]} 70. Re3+ {[%clk
0:00:11.7]} 1-0

[Event "Early-Titled-Tuesday-Blitz-October-03-2023"]
[Site "Chess.com"]
[Date "2023.10.03"]
[Round "7"]
[White "Krakozia"]
[Black "igorkovalenko"]
[Result "0-1"]
[WhiteElo "3008"]
[BlackElo "2880"]
[TimeControl "180+1"]
[EndTime "9:20:38 PDT"]
[Termination "igorkovalenko won on time"]

1. Nf3 {[%clk 0:03:00.9]} 1... d5 {[%clk 0:02:59.8]} 2. g3 {[%clk 0:03:00.5]}
2... c6 {[%clk 0:02:59.6]} 3. Bg2 {[%clk 0:03:00.2]} 3... Bg4 {[%clk 0:03:00.2]}
4. O-O {[%clk 0:02:57.9]} 4... Nd7 {[%clk 0:03:00.5]} 5. d3 {[%clk 0:02:57.8]}
5... e6 {[%clk 0:03:00.7]} 6. h3 {[%clk 0:02:53.5]} 6... Bxf3 {[%clk 0:03:00.7]}
7. Bxf3 {[%clk 0:02:53.3]} 7... h5 {[%clk 0:03:01.6]} 8. Bg2 {[%clk 0:02:51.8]}
8... Qc7 {[%clk 0:02:58.2]} 9. e4 {[%clk 0:02:49.6]} 9... Bc5 {[%clk 0:02:54.9]}
10. d4 {[%clk 0:02:48.2]} 10... Bb6 {[%clk 0:02:53.2]} 11. c4 {[%clk 0:02:42.3]}
11... dxe4 {[%clk 0:02:50.1]} 12. Nc3 {[%clk 0:02:34.3]} 12... Ngf6 {[%clk
0:02:49.3]} 13. c5 {[%clk 0:02:19.4]} 13... Ba5 {[%clk 0:02:48]} 14. Bf4 {[%clk
0:02:19.8]} 14... Qd8 {[%clk 0:02:47.5]} 15. Qb3 {[%clk 0:02:10.6]} 15... Qc8
{[%clk 0:02:47.3]} 16. Nxe4 {[%clk 0:01:55.8]} 16... Nxe4 {[%clk 0:02:47.1]} 17.
Bxe4 {[%clk 0:01:56.4]} 17... Bc7 {[%clk 0:02:45.7]} 18. Bg5 {[%clk 0:01:53.4]}
18... Nf6 {[%clk 0:02:40.7]} 19. Bxf6 {[%clk 0:01:47.6]} 19... gxf6 {[%clk
0:02:41.6]} 20. Rfe1 {[%clk 0:01:47.6]} 20... Kf8 {[%clk 0:02:40.4]} 21. Kg2
{[%clk 0:01:44.3]} 21... Rb8 {[%clk 0:02:34.3]} 22. h4 {[%clk 0:01:39]} 22... f5
{[%clk 0:02:32.8]} 23. Bc2 {[%clk 0:01:33]} 23... Qd8 {[%clk 0:02:32.6]} 24.
Rad1 {[%clk 0:01:31.5]} 24... Qf6 {[%clk 0:02:32.1]} 25. f4 {[%clk 0:01:22.5]}
25... Rg8 {[%clk 0:02:29.5]} 26. Qf3 {[%clk 0:01:13.4]} 26... Qxh4 {[%clk
0:02:24.2]} 27. Rf1 {[%clk 0:01:07.6]} 27... Qf6 {[%clk 0:02:19]} 28. Qxh5
{[%clk 0:01:03.8]} 28... Rg4 {[%clk 0:02:10.4]} 29. Rd3 {[%clk 0:00:53]} 29...
Ke7 {[%clk 0:02:04.2]} 30. Bd1 {[%clk 0:00:52.7]} 30... Rg6 {[%clk 0:01:41.3]}
31. Qf3 {[%clk 0:00:44.2]} 31... Rbg8 {[%clk 0:01:35.8]} 32. Qf2 {[%clk
0:00:43.9]} 32... Qh4 {[%clk 0:01:22.9]} 33. Rb3 {[%clk 0:00:26.2]} 33... Kd8
{[%clk 0:01:17.5]} 34. Rh1 {[%clk 0:00:21.9]} 34... Qf6 {[%clk 0:01:01.4]} 35.
Rh3 {[%clk 0:00:17.5]} 35... Kc8 {[%clk 0:01:01.2]} 36. Qd2 {[%clk 0:00:13.2]}
36... a5 {[%clk 0:00:47.4]} 37. Rd3 {[%clk 0:00:11.5]} 37... Rh6 {[%clk
0:00:34.8]} 38. Bh5 {[%clk 0:00:06.3]} 38... Qh8 {[%clk 0:00:27.7]} 39. Qe2
{[%clk 0:00:06.3]} 39... Rg7 {[%clk 0:00:18.9]} 40. Rd1 {[%clk 0:00:03.2]} 40...
Bxf4 {[%clk 0:00:16.5]} 41. Rdh1 {[%clk 0:00:03.6]} 41... Kb8 {[%clk 0:00:12.9]}
42. Qf3 {[%clk 0:00:02.8]} 42... Bc7 {[%clk 0:00:12.4]} 43. Bxf7 {[%clk
0:00:02.9]} 43... Rxh3 {[%clk 0:00:11.7]} 44. Rxh3 {[%clk 0:00:02.8]} 44... Qc8
{[%clk 0:00:11.1]} 45. Bh5 {[%clk 0:00:02.2]} 45... Qd7 {[%clk 0:00:10.9]} 46.
Qe3 {[%clk 0:00:01.6]} 46... f4 {[%clk 0:00:10.7]} 47. Qe4 {[%clk 0:00:01.6]}
47... Rxg3+ {[%clk 0:00:09.1]} 48. Rxg3 {[%clk 0:00:01.4]} 48... fxg3 {[%clk
0:00:10]} 49. Bf3 {[%clk 0:00:01.7]} 49... Qf7 {[%clk 0:00:09.8]} 50. Qg4 {[%clk
0:00:01.6]} 50... Qh7 {[%clk 0:00:09.2]} 51. Qh5 {[%clk 0:00:01.6]} 51... Qc2+
{[%clk 0:00:09.3]} 52. Be2 {[%clk 0:00:01.8]} 52... Qxb2 {[%clk 0:00:09.2]} 53.
Qg4 {[%clk 0:00:01.1]} 53... Qxa2 {[%clk 0:00:08.7]} 54. Qe4 {[%clk 0:00:01.7]}
54... a4 {[%clk 0:00:08.2]} 0-1